Workbook

Sheet Solution
A1: Parameter | B1: Value
A2: MTTFA | B2: 8760
A3: MTTFB | B3: 17520
A4: a | B4: 3
A5: CPM | B5: 3000
A6: CPT | B6: 1000
A7: CCM | B7: 10000
A8: MDT | B8: 4
A9: CU | B9: 15000
A10: CTrip | B10: 100000
A11: tA | B11: 2190
A12: tB | B12: 8760
C13: =ShowFormula(B13) -> 
A14: a)
A16: PFDB | B16: =tauB/(2*MTTFB) -> 0.25 | C16: =_xlfn.FORMULATEXT(B16) -> =tauB/(2*MTTFB)
A17: CEP | B17: =PFDB*(CU*MDT+CTrip) -> 40000 | C17: =ShowFormula(B17) -> =PFDB*(CU*MDT+CTrip)
A18: tA* | B18: =MTTFA/0.893*(CPM/((alpha-1)*(CCM+CEP)))^(1/alpha) -> 3048.080263 | C18: =ShowFormula(B18) -> =MTTFA/0.893*(CPM/((alpha-1)*(CCM+CEP)))^(1/alpha) | D18: General formula:
C19: =ShowFormula(B19) -> 
A20: b)
A21: l(tA*) | B21: =(0.893/MTTFA)^alpha*tauAStar^(alpha-1) -> 9.842260507e-06
A22: ii) Use numerical methods for minimizing the cost, e.g., the SOLVER in Excel
A23: iii) Differentiation, and equating to 0, which gives: | D23: General formula:
A24: tB* | B24: =SQRT(2*CPT*MTTFB/(lambda_E_Astar*(CU*MDT+CTrip)-0*CCM/MTTFB)) -> 4717.095072 | C24: =ShowFormula(B24) -> =SQRT(2*CPT*MTTFB/(lambda_E_Astar*(CU*MDT+CTrip)-0*CCM/MTTFB))
A25: tB* | B25: =SQRT(2*CPT*MTTFB/(lambda_E_Astar*(CU*MDT+CTrip)-CCM/MTTFB)) -> 5907.698794 | C25: =ShowFormula(B25) -> =SQRT(2*CPT*MTTFB/(lambda_E_Astar*(CU*MDT+CTrip)-CCM/MTTFB))
A26: c) Optimizaiton machine #2
A27: l(tA) | B27: =(0.893/MTTFA)^alpha*tauA^(alpha-1) -> 5.080778803e-06 | C27: =(0.893/MTTFA)^alpha*tauA^(alpha-1)
A28: C(initial) | B28: =CPM/tauA+CPT/tauB+lambda_E*(CCM+tauB/(2*MTTFB)*(CU*MDT+CTrip))+CCM/(MTTFB+tauB/2) -> 2.19467821 | C28: =CPM/tauA+CPT/tauB+lambda_E*(CCM+tauB/(2*MTTFB)*(CU*MDT+CTrip))+CCM/(MTTFB+tauB/2) | D28: Unavailability of machine #1
A29: c(a) | B29: =CPM/tauAStar+CPT/tauB+lambda_E_Astar*(CCM+tauB/(2*MTTFB)*(CU*MDT+CTrip))+CCM/(MTTFB+tauB/2) -> 2.047115332 | C29: =CPM/tauAStar+CPT/tauB+lambda_E_Astar*(CCM+tauB/(2*MTTFB)*(CU*MDT+CTrip))+CCM/(MTTFB+tauB/2)
A30: c(b) | B30: =CPM/tauAStar+CPT/tauBstar1+lambda_E_Astar*(CCM+tauBstar1/(2*MTTFB)*(CU*MDT+CTrip))+CCM/(MTTFB+tauBstar1/2) -> 2.009693277 | C30: =CPM/tauAStar+CPT/tauBstar1+lambda_E_Astar*(CCM+tauBstar1/(2*MTTFB)*(CU*MDT+CTrip))+CCM/(MTTFB+tauBstar1/2) | D30: Simple formula
A31: c(b) | B31: =CPM/tauAStar+CPT/tauBstar2+lambda_E_Astar*(CCM+tauBstar2/(2*MTTFB)*(CU*MDT+CTrip))+CCM/(MTTFB+tauBstar2/2) -> 2.005850027 | C31: =CPM/tauAStar+CPT/tauBstar2+lambda_E_Astar*(CCM+tauBstar2/(2*MTTFB)*(CU*MDT+CTrip))+CCM/(MTTFB+tauBstar2/2) | D31: Advance formula
